[Event "Vezerkepzo FM Christmas 2023"]
[Site "Budapest"]
[Date "2024.01.01"]
[Round "7.3"]
[White "Kozma, Edit"]
[Black "Manukonda Arun"]
[Result "1-0"]
[ECO "B93"]
[WhiteElo "1754"]
[BlackElo "2085"]
[Annotator "NA RC"]
[PlyCount "85"]
[EventDate "2023.12.25"]
[EventType "tourn"]
[EventCountry "HUN"]
[SourceTitle "playchess.com"]
[Source "ChessBase"]
[SourceQuality "1"]
[TimeControl "40/5400+30:1800+30"]

1. e4 c5 2. Nf3 d6 3. d4 cxd4 4. Nxd4 Nf6 5. Nc3 a6 6. f4 e5 7. Nf3 Nbd7 8. Bd3 b5 9. a3 Be7 10. O-O O-O 11. Nh4 Nc5 12. Nf5 Bxf5 13. exf5 e4 14. Be2 d5 15. b4 Nb7 16. Qd4 Qd7 17. g4 Rfd8 18. Bb2 Ne8 19. Rad1 Bf6 20. Qb6 Qc8 21. Nxd5 Rxd5 22. Rxd5 Bxb2 23. a4 Nc7 24. Rdd1 bxa4 25. g5 Nb5 26. Bxb5 axb5 27. g6 hxg6 28. fxg6 Nd8 29. Qxb5 Qg4+ 30. Kh1 Qxg6 31. Rg1 Qf6 32. Qe8+ Kh7 33. Qxe4+ g6 34. Qxa8 Ne6 35. f5 Qxf5 36. Rdf1 Qxc2 37. Rxf7+ Bg7 38. Qg2 Qd3 39. Rf3 Qd7 40. Qxg6+ Kg8 41. Qe4 Nc7 42. Qc4+ Kh7 43. Rf7 1-0

[Event "Vezerkepzo FM Christmas 2023"]
[Site "Budapest"]
[Date "2024.01.02"]
[Round "8.1"]
[White "Kahn, Evarth"]
[Black "Anjali R. Sagar"]
[Result "1-0"]
[ECO "C52"]
[WhiteElo "1972"]
[BlackElo "1559"]
[Annotator "NA RC"]
[PlyCount "41"]
[EventDate "2023.12.25"]
[EventType "tourn"]
[EventCountry "HUN"]
[SourceTitle "playchess.com"]
[Source "ChessBase"]
[SourceQuality "1"]
[TimeControl "40/5400+30:1800+30"]

1. e4 {[%emt 0:13:20]} e5 {[%emt 0:00:09]} 2. Nf3 {[%emt 0:01:38]} Nc6 {[%emt 0:00:07]} 3. Bc4 {[%emt 0:00:14]} Bc5 {[%emt 0:00:12]} 4. b4 {[%emt 0:00:14]} Bxb4 {[%emt 0:00:16]} 5. c3 {[%emt 0:00:41]} Ba5 {[%emt 0:00:12]} 6. d4 {[%emt 0:00:18]} b5 {[%emt 0:00:19]} 7. Bxb5 {[%emt 0:04:56]} Nxd4 {[%emt 0:00:31]} 8. Nxd4 {[%emt 0:00:18]} exd4 {[%emt 0:00:33]} 9. Qxd4 {[%emt 0:00:07]} Qf6 10. e5 {[%emt 0:02:24]} Qb6 {[%emt 0:03:40]} 11. Qa4 {[%emt 0:00:24]} c6 {[%emt 0:08:33]} 12. Bc4 {[%emt 0:01:22]} Qc5 {[%emt 0:04:08]} 13. O-O {[%emt 0:01:10]} Bb6 {[%emt 0:02:28]} 14. Be3 {[%emt 0:02:30]} Qa5 {[%emt 0:03:46]} 15. Qb3 {[%emt 0:00:24]} Qxe5 {[%emt 0:01:36]} 16. Bxf7+ {[%emt 0:00:48]} Kf8 {[%emt 0:00:03]} 17. Bxg8 {[%emt 0:07:37]} Rxg8 {[%emt 0:00:21]} 18. Bxb6 {[%emt 0:01:19]} axb6 {[%emt 0:00:18]} 19. Nd2 {[%emt 0:01:45]} b5 {[%emt 0:02:49]} 20. Rfe1 {[%emt 0:04:00]} Qf4 {[%emt 0:02:36]} 21. Re3 {[%emt 0:02:09]} 1-0

[Event "Vezerkepzo FM Christmas 2023"]
[Site "Budapest"]
[Date "2024.01.02"]
[Round "8.2"]
[White "Manukonda Arun"]
[Black "Sagar Siya"]
[Result "1/2-1/2"]
[ECO "C77"]
[WhiteElo "2085"]
[BlackElo "1537"]
[Annotator "RC"]
[PlyCount "396"]
[EventDate "2023.12.25"]
[EventType "tourn"]
[EventCountry "HUN"]
[SourceTitle "playchess.com"]
[Source "ChessBase"]
[SourceQuality "1"]
[TimeControl "40/5400+30:1800+30"]

1. e4 {[%emt 0:09:49]} e5 {[%emt 0:00:22]} 2. Nf3 {[%emt 0:00:07]} Nc6 {[%emt 0:00:11]} 3. Bb5 {[%emt 0:00:04]} a6 {[%emt 0:00:08]} 4. Ba4 {[%emt 0:00:05]} Nf6 {[%emt 0:00:09]} 5. d3 {[%emt 0:00:31]} b5 {[%emt 0:00:44]} 6. Bb3 {[%emt 0:00:01]} Be7 {[%emt 0:00:09]} 7. a4 {[%emt 0:00:09]} Bb7 {[%emt 0:01:05]} 8. Nc3 {[%emt 0:00:21]} b4 {[%emt 0:03:14]} 9. Nd5 {[%emt 0:00:10]} Nxd5 {[%emt 0:01:23]} 10. Bxd5 {[%emt 0:00:01]} d6 {[%emt 0:01:40]} 11. O-O {[%emt 0:06:26]} a5 {[%emt 0:03:00]} 12. d4 {[%emt 0:01:43]} Bf6 {[%emt 0:04:31]} 13. c3 {[%emt 0:02:38]} O-O {[%emt 0:06:11]} 14. dxe5 {[%emt 0:03:56]} dxe5 {[%emt 0:00:54]} 15. cxb4 {[%emt 0:00:04]} axb4 {[%emt 0:01:08]} 16. Bd2 {[%emt 0:01:51]} Rb8 {[%emt 0:07:16]} 17. a5 {[%emt 0:01:55]} Nxa5 {[%emt 0:12:24]} 18. Bxb4 {[%emt 0:11:49]} Bxd5 {[%emt 0:00:08]} 19. Bxf8 {[%emt 0:00:07]} Nb3 {[%emt 0:00:13]} 20. Ra4 {[%emt 0:11:03]} Bc6 {[%emt 0:13:55]} 21. Qxd8 {[%emt 0:04:45]} Rxd8 {[%emt 0:00:19]} 22. Rb4 {[%emt 0:01:55]} Kxf8 {[%emt 0:00:35]} 23. Rxb3 {[%emt 0:00:10]} Bxe4 {[%emt 0:00:51]} 24. Re3 {[%emt 0:03:24]} Bd3 {[%emt 0:02:06]} 25. Rd1 {[%emt 0:01:26]} e4 {[%emt 0:01:03]} 26. Ne1 {[%emt 0:00:23]} Bd4 {[%emt 0:05:54]} 27. Rh3 {[%emt 0:02:20]} Be2 {[%emt 0:01:06]} 28. Rc1 {[%emt 0:03:17]} Bg4 {[%emt 0:02:57]} 29. Rxh7 {[%emt 0:06:01]} Kg8 {[%emt 0:01:02]} 30. Rh4 {[%emt 0:01:21]} f5 {[%emt 0:01:03]} 31. Rxg4 {[%emt 0:12:58]} fxg4 {[%emt 0:00:11]} 32. Rxc7 {[%emt 0:00:02]} Bxb2 {[%emt 0:01:36]} 33. Kf1 {[%emt 0:02:10]} Rd2 {[%emt 0:05:40]} 34. Nc2 {[%emt 0:11:43]} Rd1+ {[%emt 0:03:45]} 35. Ke2 {[%emt 0:00:26]} Rh1 {[%emt 0:00:57]} 36. Ne3 {[%emt 0:00:31]} Rxh2 {[%emt 0:00:56]} 37. g3 {[%emt 0:00:49]} Rh6 {[%emt 0:03:30]} 38. Re7 {[%emt 0:01:03]} Ra6 {[%emt 0:03:22]} 39. Rxe4 {[%emt 0:00:59]} Kf7 {[%emt 0:01:32]} 40. Rf4+ {[%emt 0:00:55]} Rf6 {[%emt 0:01:05]} 41. Rxg4 {[%emt 0:30:13]} Re6 {[%emt 0:31:29]} 42. Rb4 {[%emt 0:00:00]} Bf6 {[%emt 0:00:00]} 43. Rb7+ {[%emt 0:00:00]} Re7 {[%emt 0:00:00]} 44. Rb4 {[%emt 0:00:00]} Re6 {[%emt 0:00:00]} 45. Kf1 {[%emt 0:00:00]} Be5 {[%emt 0:00:00]} 46. Nd5 {[%emt 0:00:00]} Rd6 {[%emt 0:00:00]} 47. Rb7+ {[%emt 0:00:00]} Kg8 {[%emt 0:00:00]} 48. Ne7+ {[%emt 0:00:00]} Kh7 {[%emt 0:00:00]} 49. Rb5 {[%emt 0:00:00]} Re6 {[%emt 0:00:00]} 50. Nf5 {[%emt 0:00:00]} Bf6 {[%emt 0:00:00]} 51. Kg2 {[%emt 0:00:00]} Re5 {[%emt 0:00:00]} 52. Rxe5 {[%emt 0:00:00]} Bxe5 {[%emt 0:00:00]} 53. Kf3 {[%emt 0:00:00]} Kg6 {[%emt 0:00:00]} 54. Ke4 {[%emt 0:00:00]} Bc3 {[%emt 0:00:00]} 55. Ne7+ {[%emt 0:00:00]} Kf7 {[%emt 0:00:00]} 56. Nd5 {[%emt 0:00:00]} Be1 {[%emt 0:00:00]} 57. Ke3 {[%emt 0:00:00]} Ke6 {[%emt 0:00:00]} 58. Nf4+ {[%emt 0:00:00]} Kf5 {[%emt 0:00:00]} 59. Ng2 {[%emt 0:00:00]} Bc3 {[%emt 0:00:00]} 60. f3 {[%emt 0:00:00]} Bb2 {[%emt 0:00:00]} 61. Nh4+ {[%emt 0:00:00]} Kg5 {[%emt 0:00:00]} 62. Ke4 {[%emt 0:00:00]} Bc3 {[%emt 0:00:00]} 63. Ng2 {[%emt 0:00:00]} Bd2 {[%emt 0:00:00]} 64. Ne3 {[%emt 0:00:00]} Bc3 {[%emt 0:02:10]} 65. f4+ {[%emt 0:00:00]} Kg6 {[%emt 0:00:06]} 66. g4 {[%emt 0:00:00]} Bf6 {[%emt 0:01:17]} 67. Nc4 {[%emt 0:00:00]} Bc3 {[%emt 0:02:08]} 68. Ne5+ {[%emt 0:00:00]} Kf6 {[%emt 0:00:36]} 69. g5+ {[%emt 0:00:00]} Ke6 {[%emt 0:00:27]} 70. f5+ {[%emt 0:00:00]} Ke7 {[%emt 0:00:05]} 71. Kd5 {[%emt 0:00:00]} Bd2 {[%emt 0:00:54]} 72. g6 {[%emt 0:00:00]} Kf6 {[%emt 0:00:41]} 73. Ke4 {[%emt 0:00:00]} Bc3 {[%emt 0:00:23]} 74. Nd3 {[%emt 0:00:00]} Ba1 {[%emt 0:02:41]} 75. Nc5 {[%emt 0:00:00]} Bb2 {[%emt 0:00:53]} 76. Nd3 {[%emt 0:00:00]} Bc3 {[%emt 0:00:34]} 77. Nf4 {[%emt 0:00:00]} Bb2 {[%emt 0:00:10]} 78. Nh5+ {[%emt 0:00:00]} Kg5 {[%emt 0:00:35]} 79. Nf4 {[%emt 0:00:00]} Kf6 {[%emt 0:00:06]} 80. Nd5+ {[%emt 0:00:00]} Kg5 {[%emt 0:00:06]} 81. Nb4 {[%emt 0:00:00]} Kf6 {[%emt 0:00:19]} 82. Nd3 {[%emt 0:00:00]} Bc3 {[%emt 0:00:14]} 83. Kf4 {[%emt 0:00:00]} Bd2+ {[%emt 0:01:27]} 84. Kg4 {[%emt 0:01:09]} Bc3 {[%emt 0:00:06]} 85. Nf4 {[%emt 0:00:20]} Bb2 {[%emt 0:00:51]} 86. Ne6 {[%emt 0:00:39]} Be5 {[%emt 0:01:06]} 87. Nf8 {[%emt 0:00:39]} Bb2 {[%emt 0:00:21]} 88. Nh7+ {[%emt 0:00:20]} Ke7 {[%emt 0:00:31]} 89. Kf4 {[%emt 0:00:47]} Bc1+ {[%emt 0:01:28]} 90. Kg4 {[%emt 0:00:34]} Bb2 {[%emt 0:00:12]} 91. Ng5 {[%emt 0:00:11]} Kf6 {[%emt 0:00:25]} 92. Ne4+ {[%emt 0:00:19]} Ke5 {[%emt 0:00:40]} 93. Ng3 {[%emt 0:00:32]} Kf6 {[%emt 0:00:19]} 94. Nh5+ {[%emt 0:00:08]} Ke7 {[%emt 0:00:06]} 95. Kf4 {[%emt 0:00:12]} Bc3 {[%emt 0:00:50]} 96. Ke4 {[%emt 0:00:15]} Ba1 {[%emt 0:00:44]} 97. Kd5 {[%emt 0:00:01]} Bb2 {[%emt 0:00:07]} 98. Kc4 {[%emt 0:01:41]} Be5 {[%emt 0:00:23]} 99. Kb3 {[%emt 0:00:26]} Bd4 {[%emt 0:00:46]} 100. Kc2 {[%emt 0:00:12]} Be5 {[%emt 0:00:28]} 101. Kd3 {[%emt 0:00:15]} Bb2 {[%emt 0:00:07]} 102. Ke3 {[%emt 0:00:38]} Bc1+ {[%emt 0:00:36]} 103. Ke4 {[%emt 0:00:27]} Bb2 {[%emt 0:00:12]} 104. Ng3 {[%emt 0:00:22]} Kf6 {[%emt 0:00:14]} 105. Ne2 {[%emt 0:00:52]} Ba1 {[%emt 0:00:40]} 106. Nc1 {[%emt 0:00:11]} Bb2 {[%emt 0:00:35]} 107. Nd3 {[%emt 0:00:07]} Bc3 {[%emt 0:00:23]} 108. Nc5 {[%emt 0:00:09]} Bb2 {[%emt 0:00:22]} 109. Na4 {[%emt 0:00:19]} Be5 110. Nb6 {[%emt 0:00:10]} Bb2 {[%emt 0:00:36]} 111. Kf4 {[%emt 0:00:18]} Bc1+ {[%emt 0:00:14]} 112. Kg4 {[%emt 0:00:36]} Bb2 {[%emt 0:00:14]} 113. Nd5+ {[%emt 0:00:18]} Ke5 {[%emt 0:00:09]} 114. Nb4 {[%emt 0:01:58]} Kf6 {[%emt 0:00:08]} 115. Kf4 {[%emt 0:00:13]} Bc1+ {[%emt 0:00:25]} 116. Ke4 {[%emt 0:00:02]} Bb2 {[%emt 0:00:03]} 117. Nd5+ {[%emt 0:00:25]} Kg5 {[%emt 0:00:07]} 118. Ne3 {[%emt 0:00:42]} Kf6 {[%emt 0:00:35]} 119. Nc4 {[%emt 0:00:20]} Bc3 {[%emt 0:00:46]} 120. Kf4 {[%emt 0:00:07]} Bd4 {[%emt 0:00:41]} 121. Nd2 {[%emt 0:01:22]} Bb2 {[%emt 0:00:18]} 122. Ne4+ {[%emt 0:00:15]} Ke7 {[%emt 0:00:07]} 123. f6+ {[%emt 0:00:18]} Bxf6 {[%emt 0:00:25]} 124. Kf5 {[%emt 0:00:03]} Bb2 {[%emt 0:00:34]} 125. Nc5 {[%emt 0:01:16]} Bc3 {[%emt 0:00:41]} 126. Ne6 {[%emt 0:00:14]} Bf6 {[%emt 0:00:32]} 127. Nf4 {[%emt 0:00:19]} Bb2 {[%emt 0:00:10]} 128. Nd5+ {[%emt 0:00:09]} Kf8 {[%emt 0:00:47]} 129. Ke6 {[%emt 0:01:38]} Ke8 {[%emt 0:00:58]} 130. Nc7+ {[%emt 0:00:26]} Kf8 {[%emt 0:00:35]} 131. Kd7 {[%emt 0:00:06]} Bf6 {[%emt 0:00:23]} 132. Ne6+ {[%emt 0:00:07]} Kg8 {[%emt 0:00:10]} 133. Ke8 {[%emt 0:00:02]} Bh4 {[%emt 0:00:10]} 134. Nd4 {[%emt 0:02:53]} Bg5 {[%emt 0:00:24]} 135. Kd7 {[%emt 0:01:18]} Bf6 {[%emt 0:00:20]} 136. Nf3 {[%emt 0:01:06]} Kf8 {[%emt 0:00:08]} 137. Nd2 {[%emt 0:00:23]} Bg5 {[%emt 0:00:25]} 138. Ne4 {[%emt 0:00:10]} Bh4 {[%emt 0:00:11]} 139. Ke6 {[%emt 0:00:13]} Be1 {[%emt 0:00:49]} 140. Ng5 {[%emt 0:00:22]} Bd2 {[%emt 0:00:19]} 141. Nf3 {[%emt 0:00:15]} Bc3 {[%emt 0:00:18]} 142. Kd7 {[%emt 0:00:45]} Bf6 {[%emt 0:00:12]} 143. Kd6 {[%emt 0:00:15]} Bc3 {[%emt 0:00:12]} 144. Ng5 {[%emt 0:00:23]} Bd2 {[%emt 0:00:50]} 145. Ne6+ {[%emt 0:00:11]} Kg8 {[%emt 0:00:10]} 146. Ke7 {[%emt 0:00:40]} Bb4+ {[%emt 0:00:11]} 147. Ke8 {[%emt 0:00:04]} Bc3 {[%emt 0:00:19]} 148. Nd8 {[%emt 0:02:11]} Bf6 {[%emt 0:00:26]} 149. Nc6 {[%emt 0:00:18]} Bh4 {[%emt 0:00:12]} 150. Kd7 {[%emt 0:00:16]} Kf8 {[%emt 0:00:19]} 151. Nd4 {[%emt 0:00:09]} Bf6 {[%emt 0:00:22]} 152. Nf5 {[%emt 0:00:25]} Bg5 {[%emt 0:00:22]} 153. Ke6 {[%emt 0:00:15]} Bf6 {[%emt 0:00:46]} 154. Ng3 {[%emt 0:00:54]} Bb2 {[%emt 0:00:28]} 155. Nh5 {[%emt 0:00:14]} Bc3 {[%emt 0:00:13]} 156. Kd7 {[%emt 0:00:12]} Be5 {[%emt 0:00:30]} 157. Kd8 {[%emt 0:00:20]} Bh2 {[%emt 0:00:17]} 158. Kd7 {[%emt 0:00:12]} Be5 {[%emt 0:00:09]} 159. Ke6 {[%emt 0:00:04]} Bc7 {[%emt 0:01:00]} 160. Kf5 {[%emt 0:00:19]} Ba5 {[%emt 0:00:15]} 161. Nf4 {[%emt 0:00:10]} Bc3 {[%emt 0:00:11]} 162. Ne6+ {[%emt 0:00:26]} Ke7 {[%emt 0:00:28]} 163. Nc7 {[%emt 0:00:12]} Bb2 {[%emt 0:00:26]} 164. Nd5+ {[%emt 0:00:13]} Kf8 {[%emt 0:00:15]} 165. Nb6 {[%emt 0:01:15]} Bc3 {[%emt 0:00:15]} 166. Ke6 {[%emt 0:00:12]} Bb2 {[%emt 0:00:30]} 167. Nd7+ {[%emt 0:04:12]} Ke8 {[%emt 0:00:15]} 168. Nc5 {[%emt 0:00:19]} Kf8 {[%emt 0:00:30]} 169. Kd7 {[%emt 0:00:31]} Bf6 {[%emt 0:00:16]} 170. Ne6+ {[%emt 0:00:10]} Kg8 {[%emt 0:00:07]} 171. Ke8 {[%emt 0:00:08]} Bh4 {[%emt 0:00:07]} 172. Nf4 {[%emt 0:00:11]} Bg5 {[%emt 0:00:20]} 173. Ng2 {[%emt 0:01:00]} Bf6 {[%emt 0:00:15]} 174. Ne1 {[%emt 0:00:10]} Bh4 {[%emt 0:00:14]} 175. Nf3 {[%emt 0:00:06]} Bf6 {[%emt 0:00:06]} 176. Nh2 {[%emt 0:00:11]} Bh4 {[%emt 0:00:15]} 177. Ng4 {[%emt 0:00:18]} Bg5 {[%emt 0:00:07]} 178. Ne5 {[%emt 0:00:19]} Bf6 {[%emt 0:00:22]} 179. Nf7 {[%emt 0:00:16]} Bh4 {[%emt 0:00:21]} 180. Kd7 {[%emt 0:02:20]} Kf8 {[%emt 0:00:09]} 181. Ke6 {[%emt 0:01:01]} Bf6 {[%emt 0:00:25]} 182. Nd6 {[%emt 0:00:13]} Bc3 {[%emt 0:00:23]} 183. Ne4 {[%emt 0:00:02]} Bb2 {[%emt 0:00:15]} 184. Nc5 {[%emt 0:00:20]} Bc3 {[%emt 0:00:18]} 185. Kf5 {[%emt 0:00:11]} Ke7 {[%emt 0:00:16]} 186. Ne6 {[%emt 0:00:12]} Bf6 {[%emt 0:00:28]} 187. Nc7 {[%emt 0:00:11]} Bb2 {[%emt 0:00:12]} 188. Kg5 {[%emt 0:00:22]} Be5 {[%emt 0:00:41]} 189. Nd5+ {[%emt 0:00:13]} Ke6 {[%emt 0:00:30]} 190. Ne3 {[%emt 0:00:29]} Bb2 {[%emt 0:00:31]} 191. Kh5 {[%emt 0:00:59]} Bc1 {[%emt 0:00:16]} 192. Nd1 {[%emt 0:00:24]} Kf5 {[%emt 0:00:30]} 193. Nf2 {[%emt 0:00:12]} Bd2 {[%emt 0:00:28]} 194. Nd3 {[%emt 0:00:24]} Be3 {[%emt 0:00:33]} 195. Nb4 {[%emt 0:00:13]} Bd4 {[%emt 0:00:38]} 196. Nc6 {[%emt 0:00:14]} Bc3 {[%emt 0:00:19]} 197. Ne7+ {[%emt 0:00:16]} Ke6 {[%emt 0:00:26]} 198. Ng8 {[%emt 0:01:26]} Bd2 1/2-1/2

[Event "Vezerkepzo FM Christmas 2023"]
[Site "Budapest"]
[Date "2024.01.02"]
[Round "8.3"]
[White "Varga, Csaba Zoltan"]
[Black "Kozma, Edit"]
[Result "1-0"]
[ECO "A00"]
[WhiteElo "2201"]
[BlackElo "1754"]
[Annotator "RC"]
[PlyCount "71"]
[EventDate "2023.12.25"]
[EventType "tourn"]
[EventCountry "HUN"]
[SourceTitle "playchess.com"]
[Source "ChessBase"]
[SourceQuality "1"]
[TimeControl "40/5400+30:1800+30"]

1. Nc3 {[%emt 0:03:44]} e5 {[%emt 0:02:13]} 2. a3 {[%emt 0:00:25]} Nf6 {[%emt 0:00:32]} 3. d3 {[%emt 0:00:28]} d5 {[%emt 0:01:26]} 4. Nf3 {[%emt 0:00:35]} Nc6 {[%emt 0:01:53]} 5. Bg5 {[%emt 0:00:10]} Be7 {[%emt 0:00:19]} 6. e3 {[%emt 0:01:08]} O-O {[%emt 0:01:36]} 7. h4 {[%emt 0:01:49]} Bg4 {[%emt 0:06:35]} 8. Be2 {[%emt 0:00:29]} h6 {[%emt 0:09:09]} 9. Nd2 {[%emt 0:00:26]} Bxe2 {[%emt 0:07:09]} 10. Qxe2 {[%emt 0:00:07]} d4 {[%emt 0:01:35]} 11. Nce4 {[%emt 0:01:55]} dxe3 {[%emt 0:09:38]} 12. fxe3 {[%emt 0:02:20]} Nxe4 {[%emt 0:08:52]} 13. Bxe7 {[%emt 0:00:29]} Qxe7 {[%emt 0:04:41]} 14. dxe4 {[%emt 0:00:17]} Qc5 {[%emt 0:04:33]} 15. O-O-O {[%emt 0:00:32]} Rfd8 {[%emt 0:05:33]} 16. Kb1 {[%emt 0:01:09]} a5 {[%emt 0:02:46]} 17. Nb3 {[%emt 0:00:28]} Rxd1+ {[%emt 0:04:12]} 18. Rxd1 {[%emt 0:00:05]} Qe7 {[%emt 0:00:40]} 19. Qg4 {[%emt 0:00:29]} Rd8 {[%emt 0:04:02]} 20. Rd5 {[%emt 0:00:07]} b6 {[%emt 0:02:57]} 21. Nc1 {[%emt 0:00:41]} Rd6 {[%emt 0:03:56]} 22. Qc8+ {[%emt 0:04:21]} Qd8 {[%emt 0:04:18]} 23. Qxd8+ {[%emt 0:00:20]} Rxd8 {[%emt 0:00:13]} 24. Nd3 {[%emt 0:00:31]} f6 {[%emt 0:00:33]} 25. c4 {[%emt 0:05:31]} Kf7 {[%emt 0:00:51]} 26. Kc2 {[%emt 0:03:48]} Ke8 {[%emt 0:03:24]} 27. h5 {[%emt 0:01:43]} Ne7 {[%emt 0:02:14]} 28. Rb5 {[%emt 0:01:34]} Nc8 {[%emt 0:00:15]} 29. c5 {[%emt 0:00:26]} c6 {[%emt 0:00:54]} 30. Rb3 {[%emt 0:00:12]} a4 {[%emt 0:01:37]} 31. Rc3 {[%emt 0:00:27]} b5 {[%emt 0:00:05]} 32. Nb4 {[%emt 0:06:31]} Ne7 {[%emt 0:00:20]} 33. g4 {[%emt 0:00:07]} Kd7 {[%emt 0:01:41]} 34. Rd3+ {[%emt 0:00:31]} Kc7 {[%emt 0:00:35]} 35. Na6+ {[%emt 0:00:17]} Kc8 {[%emt 0:00:06]} 36. Rd6 {[%emt 0:00:53]} 1-0

[Event "Vezerkepzo FM Christmas 2023"]
[Site "Budapest"]
[Date "2024.01.03"]
[Round "9.1"]
[White "Anjali R. Sagar"]
[Black "Manukonda Arun"]
[Result "0-1"]
[ECO "B90"]
[WhiteElo "1559"]
[BlackElo "2085"]
[Annotator "NA"]
[PlyCount "71"]
[EventDate "2023.12.25"]
[EventType "tourn"]
[EventCountry "HUN"]
[SourceTitle "playchess.com"]
[Source "ChessBase"]
[SourceQuality "1"]
[TimeControl "40/5400+30:1800+30"]

1. e4 {[%emt 0:00:02]} c5 {[%emt 0:54:31]} 2. Nf3 {[%emt 0:00:12]} d6 {[%emt 0:00:07]} 3. d4 {[%emt 0:00:11]} cxd4 {[%emt 0:00:01]} 4. Nxd4 {[%emt 0:00:11]} Nf6 {[%emt 0:00:01]} 5. Nc3 {[%emt 0:00:22]} a6 {[%emt 0:00:03]} 6. f3 {[%emt 0:00:25]} g6 {[%emt 0:00:33]} 7. Be3 {[%emt 0:01:32]} Bg7 {[%emt 0:00:04]} 8. Bc4 {[%emt 0:00:27]} O-O {[%emt 0:00:15]} 9. Qd2 {[%emt 0:00:23]} b5 {[%emt 0:00:01]} 10. Bb3 {[%emt 0:00:27]} e6 {[%emt 0:00:45]} 11. O-O-O {[%emt 0:01:07]} d5 {[%emt 0:02:23]} 12. exd5 {[%emt 0:01:53]} b4 {[%emt 0:00:23]} 13. Na4 {[%emt 0:14:32]} Nxd5 {[%emt 0:00:12]} 14. Bxd5 {[%emt 0:00:32]} Qxd5 {[%emt 0:00:49]} 15. Nb3 {[%emt 0:03:50]} Qxd2+ {[%emt 0:05:24]} 16. Rxd2 {[%emt 0:01:45]} Nc6 {[%emt 0:01:43]} 17. Nbc5 {[%emt 0:08:14]} Rb8 {[%emt 0:01:42]} 18. Rhd1 {[%emt 0:04:43]} Rb5 {[%emt 0:05:02]} 19. Rd6 {[%emt 0:06:49]} Ne7 {[%emt 0:02:04]} 20. Nd7 {[%emt 0:21:46]} Re8 {[%emt 0:02:40]} 21. Ndb6 {[%emt 0:10:33]} Nd5 {[%emt 0:06:37]} 22. Bf2 {[%emt 0:05:46]} Be5 {[%emt 0:08:46]} 23. Nxd5 {[%emt 0:05:28]} exd5 {[%emt 0:00:26]} 24. R6xd5 {[%emt 0:02:21]} Rxd5 {[%emt 0:04:53]} 25. Rxd5 {[%emt 0:00:37]} Bb7 {[%emt 0:00:01]} 26. Rd3 {[%emt 0:01:44]} Bxh2 {[%emt 0:00:58]} 27. Nc5 {[%emt 0:04:45]} Bc6 {[%emt 0:00:36]} 28. Kd2 {[%emt 0:02:10]} Bb5 {[%emt 0:00:46]} 29. g3 {[%emt 0:01:04]} Bxd3 {[%emt 0:00:13]} 30. Nxd3 {[%emt 0:00:06]} a5 {[%emt 0:00:36]} 31. c3 {[%emt 0:00:58]} bxc3+ {[%emt 0:00:21]} 32. bxc3 {[%emt 0:00:03]} h5 {[%emt 0:00:06]} 33. f4 {[%emt 0:00:43]} f6 {[%emt 0:00:20]} 34. Ne1 {[%emt 0:00:33]} h4 {[%emt 0:00:07]} 35. gxh4 {[%emt 0:00:00]} Bxf4+ {[%emt 0:00:00]} 36. Kd3 {[%emt 0:00:00]} 0-1

[Event "Vezerkepzo FM Christmas 2023"]
[Site "Budapest"]
[Date "2024.01.03"]
[Round "9.2"]
[White "Sagar Siya"]
[Black "Varga, Csaba Zoltan"]
[Result "1/2-1/2"]
[ECO "B17"]
[WhiteElo "1537"]
[BlackElo "2201"]
[Annotator "RC"]
[PlyCount "71"]
[EventDate "2023.12.25"]
[EventType "tourn"]
[EventCountry "HUN"]
[SourceTitle "playchess.com"]
[Source "ChessBase"]
[SourceQuality "1"]
[TimeControl "40/5400+30:1800+30"]

1. e4 {[%emt 0:00:04]} c6 {[%emt 0:00:16]} 2. d4 {[%emt 0:00:33]} d5 {[%emt 0:00:05]} 3. Nc3 {[%emt 0:00:14]} dxe4 {[%emt 0:00:06]} 4. Nxe4 {[%emt 0:00:05]} Nd7 {[%emt 0:00:11]} 5. Bc4 {[%emt 0:00:19]} e6 {[%emt 0:00:12]} 6. Ng5 {[%emt 0:02:29]} Nb6 {[%emt 0:00:15]} 7. Bd3 {[%emt 0:01:47]} h6 {[%emt 0:01:44]} 8. Qh5 {[%emt 0:13:18]} hxg5 {[%emt 0:00:17]} 9. Qxh8 {[%emt 0:00:19]} Nf6 {[%emt 0:00:20]} 10. Bxg5 {[%emt 0:02:50]} Qxd4 {[%emt 0:00:13]} 11. O-O-O {[%emt 0:03:02]} Na4 {[%emt 0:00:31]} 12. Bxf6 {[%emt 0:01:12]} Qxf6 {[%emt 0:02:22]} 13. c3 {[%emt 0:02:40]} Bd7 {[%emt 0:11:56]} 14. Nf3 {[%emt 0:03:42]} Nxc3 {[%emt 0:01:04]} 15. bxc3 {[%emt 0:00:39]} Qxc3+ {[%emt 0:00:06]} 16. Kb1 {[%emt 0:00:53]} O-O-O {[%emt 0:10:10]} 17. Qh4 {[%emt 0:02:43]} Ba3 {[%emt 0:02:11]} 18. Qd4 {[%emt 0:03:06]} Qa5 {[%emt 0:00:05]} 19. Bc4 {[%emt 0:03:39]} e5 {[%emt 0:03:58]} 20. Qxe5 {[%emt 0:01:37]} Qb4+ {[%emt 0:00:06]} 21. Bb3 {[%emt 0:01:00]} f6 {[%emt 0:04:11]} 22. Qe3 {[%emt 0:03:56]} c5 {[%emt 0:00:15]} 23. Ka1 {[%emt 0:04:37]} c4 {[%emt 0:00:22]} 24. Rd4 {[%emt 0:00:52]} b5 {[%emt 0:00:37]} 25. Rhd1 {[%emt 0:06:54]} Re8 {[%emt 0:01:39]} 26. Qd2 {[%emt 0:03:37]} Bf5 {[%emt 0:00:49]} 27. Rd8+ {[%emt 0:07:46]} Rxd8 {[%emt 0:00:08]} 28. Qxd8+ {[%emt 0:00:07]} Kb7 {[%emt 0:00:02]} 29. Rd7+ {[%emt 0:04:07]} Bxd7 {[%emt 0:00:11]} 30. Qxd7+ {[%emt 0:00:04]} Kb6 {[%emt 0:00:39]} 31. Qd8+ {[%emt 0:00:39]} Ka6 {[%emt 0:01:39]} 32. Qc8+ {[%emt 0:00:31]} Ka5 {[%emt 0:00:32]} 33. Qc7+ {[%emt 0:00:50]} Ka6 {[%emt 0:00:04]} 34. Qc6+ {[%emt 0:00:21]} Ka5 {[%emt 0:00:04]} 35. Qc7+ {[%emt 0:00:15]} Ka6 {[%emt 0:00:04]} 36. Qc6+ {[%emt 0:00:15]} 1/2-1/2

[Event "Vezerkepzo FM Christmas 2023"]
[Site "Budapest"]
[Date "2024.01.03"]
[Round "9.3"]
[White "Kozma, Edit"]
[Black "Kahn, Evarth"]
[Result "1-0"]
[ECO "B03"]
[WhiteElo "1754"]
[BlackElo "1972"]
[Annotator "NA RC"]
[PlyCount "65"]
[EventDate "2023.12.25"]
[EventType "tourn"]
[EventCountry "HUN"]
[SourceTitle "playchess.com"]
[Source "ChessBase"]
[SourceQuality "1"]
[TimeControl "40/5400+30:1800+30"]

1. e4 Nf6 2. e5 Nd5 3. d4 d6 4. exd6 exd6 5. Nf3 Be7 6. Bc4 Nb6 7. Bb3 O-O 8. h3 Bf5 9. O-O Nc6 10. c3 Qd7 11. Bf4 Rae8 12. Nbd2 Bd3 13. Re1 Qf5 14. Be3 Na5 15. Nf1 Nxb3 16. axb3 Bc2 17. Qc1 Bxb3 18. Rxa7 Bd5 19. Ng3 Qg6 20. Ra1 Bxf3 21. gxf3 Nd5 22. Kh2 Bh4 23. Rg1 Kh8 24. Bd2 Qd3 25. c4 Qxf3 26. cxd5 Qxf2+ 27. Rg2 Bxg3+ 28. Kh1 Qf3 29. Ra3 Qxd5 30. Raxg3 Re2 31. Kh2 Rxg2+ 32. Rxg2 c6 33. Qg1 1-0